bitfinex/quotes_ETHUSD_20240604
["timestamp","ask_amount","ask_price","bid_price","bid_amount"]
[1717519346124,0.67134965,3823.0,3822.9,2.61575]
[1717519348245,1.876,3823.1,3822.9,2.65551608]
[1717519348804,2.54734965,3823.1,3822.9,2.65551608]
[1717519349851,0.67134965,3823.1,3822.9,2.65551608]
[1717519350068,2.54734965,3823.1,3822.9,2.65551608]
[1717519352304,1.876,3823.1,3822.9,2.65551608]
[1717519352931,2.54734965,3823.1,3822.9,2.65551608]
[1717519353242,2.80208462,3823.1,3822.9,2.65551608]
[1717519353444,0.67134965,3823.0,3822.9,2.65551608]
[1717519354654,2.54734965,3823.0,3822.9,2.65551608]
[1717519355628,1.876,3823.0,3822.9,2.65551608]
[1717519358354,1.876,3823.0,3822.9,0.03976608]
[1717519358551,2.13073497,3823.0,3822.9,0.03976608]
[1717519358771,2.13073497,3823.0,3822.6,2.616]
[1717519358772,0.67134965,3822.7,3822.6,2.616]
[1717519361147,0.67134965,3822.4,3822.3,5.6162]
[1717519361329,2.54734965,3822.4,3822.3,2.6162]
[1717519362268,0.67134965,3822.2,3822.0,2.61639]
[1717519363366,0.92608462,3822.2,3822.0,2.61639]
[1717519364451,0.92608462,3822.2,3821.3,3.0]
[1717519364452,0.67134965,3821.9,3821.3,3.0]
[1717519364756,1.876,3821.4,3821.3,2.61687]
[1717519364951,0.67134965,3821.3,3820.8,2.9191]
[1717519365152,1.876,3821.4,3820.8,0.3019]
[1717519365354,3.88073352,3821.5,3821.3,2.61691]
[1717519366293,3.88073352,3821.5,3821.4,0.03561129]
[1717519366510,3.88073352,3821.5,3821.3,2.61691]
[1717519366638,3.88073352,3821.5,3821.4,0.03575023]
[1717519366639,5.75673352,3821.5,3821.4,0.03575023]
[1717519366977,6.42808317,3821.5,3821.4,0.03575023]
[1717519368544,6.42808317,3821.5,3821.3,2.61691]
[1717519368858,2.54734965,3821.5,3821.4,0.03577905]
[1717519369904,0.67134965,3821.1,3821.0,2.61711]
[1717519370954,2.54734965,3821.1,3821.0,2.61711]
[1717519371716,2.54734965,3821.1,3820.8,0.3019]
[1717519371840,0.67134965,3820.9,3820.8,0.3019]
[1717519372278,2.54734965,3821.1,3820.0,0.26070387]
[1717519372478,2.54734965,3820.7,3820.6,2.61738]
[1717519374492,0.67134965,3820.5,3820.3,2.61758]
[1717519376045,1.876,3820.7,3819.9,2.6178]
[1717519376286,4.83274965,3820.0,3819.9,2.6178]
[1717519376484,5.31602462,3820.0,3819.9,2.6178]
[1717519376849,5.31602462,3820.0,3819.6,2.61806]
[1717519377050,0.67134965,3819.7,3818.6,2.2638]
[1717519377274,4.64467497,3820.0,3818.7,0.03629798]
[1717519377275,1.876,3819.4,3818.7,0.03629798]
[1717519378163,2.54734965,3819.4,3818.7,0.03629798]
[1717519378657,2.54734965,3819.4,3819.2,2.61829]
[1717519379065,2.54734965,3819.4,3819.3,0.03617005]
[1717519381067,5.29448462,3819.4,3819.3,0.03617005]
[1717519381367,5.29448462,3819.4,3819.1,2.61837]
[1717519381559,0.67134965,3819.2,3819.1,2.61837]
[1717519382154,2.54734965,3819.2,3819.1,2.61837]
[1717519383103,0.67134965,3819.7,3819.4,2.61814]
[1717519383264,1.36025461,3821.6,3818.7,5.61867]
[1717519383265,3.88073352,3820.1,3819.8,2.61793]
[1717519383794,4.55208317,3820.5,3820.4,2.61752]
[1717519383997,0.67134965,3820.5,3820.4,2.61752]
[1717519384203,0.67134965,3820.4,3820.0,2.61773]
[1717519384372,1.876,3820.1,3820.0,2.61773]
[1717519384578,2.54734965,3820.1,3820.0,2.61773]
[1717519384892,2.13073497,3820.1,3820.0,2.61773]
[1717519385259,1.876,3820.1,3820.0,2.61773]
[1717519385457,0.67134965,3820.5,3820.3,2.61759]
[1717519385819,3.88073352,3821.0,3820.9,2.61718]
[1717519386023,1.876,3821.1,3820.9,2.61718]
[1717519386996,0.67134965,3821.3,3820.9,2.61718]
[1717519387204,1.876,3821.2,3820.9,2.61718]
[1717519387401,0.67134965,3821.3,3820.9,2.61718]
[1717519387697,5.75673352,3821.4,3821.3,2.61691]
[1717519388276,3.88073352,3821.4,3821.3,2.61691]
[1717519388480,3.88073352,3821.4,3821.3,2.65207899]
[1717519391328,5.68796818,3821.4,3821.3,2.65207899]
[1717519391530,5.01661853,3821.4,3821.3,2.65207899]
[1717519392411,1.80723466,3821.4,3821.3,2.65207899]
[1717519392774,1.80723466,3821.4,3821.3,2.61691]
[1717519393433,1.13588501,3821.4,3821.3,2.61691]
[1717519393978,1.80723466,3821.4,3821.3,2.61691]
[1717519394312,0.67134965,3821.1,3820.9,2.61713]
[1717519394501,1.876,3821.0,3820.9,2.61713]
[1717519396391,1.876,3821.0,3820.9,2.65246107]
[1717519401149,4.93076696,3821.6,3821.4,2.61684]
[1717519401552,4.93076696,3821.6,3821.5,0.03537595]
[1717519401731,7.21247858,3821.6,3821.5,0.03537595]
[1717519401933,4.93076696,3821.6,3821.4,2.61684]
[1717519402678,4.93076696,3821.6,3821.5,0.03522659]
[1717519403043,0.67134965,3821.5,3821.4,2.61684]
[1717519404483,1.876,3821.7,3821.4,2.61684]
[1717519404837,1.876,3821.7,3821.4,2.65198092]
[1717519405036,2.54734965,3821.7,3821.4,2.65198092]
[1717519407844,2.54734965,3821.7,3821.4,5.26882092]
[1717519408162,3.88073352,3822.2,3821.9,2.61649]
[1717519408463,5.60211661,3822.4,3822.1,2.61636]
[1717519409064,5.60211661,3822.4,3822.3,2.61622]
[1717519409382,6.73800162,3822.4,3822.3,2.61622]
[1717519409876,5.60211661,3822.4,3822.3,2.61622]
[1717519410179,4.93076696,3822.4,3822.3,2.61622]
[1717519410384,4.93076696,3822.4,3822.3,2.65072313]
[1717519411441,5.60211661,3822.4,3822.3,2.65072313]
[1717519412848,0.67134965,3822.4,3822.3,2.65072313]
[1717519414659,1.876,3822.5,3822.3,2.65072313]
[1717519415984,1.876,3822.5,3822.3,5.26694313]
[1717519416178,4.55208317,3822.7,3822.6,2.61602]
[1717519416587,4.55208317,3822.7,3822.6,2.65037004]
[1717519416755,3.88073352,3822.7,3822.6,5.26639004]
[1717519418881,0.67134965,3822.9,3822.6,5.26639004]
[1717519420082,2.54734965,3822.9,3822.6,2.65037004]
[1717519420282,0.67134965,3822.7,3822.6,2.65037004]
[1717519420665,2.54734965,3822.9,3822.6,2.65037004]
[1717519422150,4.93076696,3823.0,3822.7,2.61593]
[1717519422350,2.54734965,3823.1,3822.9,2.61581]
[1717519423590,2.54734965,3823.1,3822.9,5.23162]
[1717519423793,2.54734965,3823.1,3823.0,0.03375111]
[1717519424564,3.88073352,3823.3,3823.1,2.61567]
[1717519425070,3.88073352,3823.3,3823.1,5.23134]
[1717519427387,0.67134965,3823.4,3823.1,2.61567]
[1717519428279,1.876,3823.5,3823.4,2.61547]
[1717519428280,2.54734965,3823.5,3823.4,2.61547]
[1717519428473,3.22802635,3823.5,3823.4,2.61547]
[1717519428901,3.22802635,3823.5,3822.5,2.61605]
[1717519429211,2.54734965,3823.2,3823.1,2.61567]
[1717519429666,2.54734965,3823.2,3823.1,2.64930197]
[1717519430666,2.87015229,3823.2,3823.1,2.64930197]
[1717519431240,5.32905229,3823.2,3823.1,2.64930197]
[1717519431408,5.32905229,3823.2,3823.1,0.03363197]
[1717519431608,5.32905229,3823.2,3822.8,2.61585]
[1717519431609,0.67134965,3822.9,3822.8,2.61585]
[1717519432125,0.67134965,3822.9,3822.8,2.64947245]
[1717519432298,1.20425488,3822.9,3822.8,2.64947245]
[1717519432498,0.67134965,3822.4,3822.3,2.61622]
[1717519432712,2.54734965,3822.4,3822.3,2.61622]
[1717519435822,4.93414965,3822.4,3822.3,2.61622]
[1717519436022,0.67134965,3822.1,3822.0,2.61639]
[1717519436392,1.16476462,3822.1,3821.7,2.61662]
[1717519436592,2.54734965,3821.8,3821.7,2.61662]
[1717519437437,0.67134965,3822.5,3822.2,2.61628]
[1717519437734,1.876,3822.4,3822.2,2.61628]
[1717519438306,1.876,3822.4,3822.3,0.0339382]
[1717519438503,0.67134965,3822.2,3821.9,2.61649]
[1717519438707,4.46323497,3822.4,3821.9,2.61649]
[1717519438708,2.54734965,3822.0,3821.9,2.61649]
[1717519441319,0.67134965,3822.0,3821.9,2.61649]
[1717519441519,0.67134965,3822.0,3821.9,2.65090714]
[1717519442238,0.67134965,3822.2,3821.9,2.65090714]
[1717519442896,3.88073352,3822.7,3822.6,2.61602]
[1717519443327,3.88073352,3822.7,3822.6,2.65010553]
[1717519445228,4.93076696,3823.2,3823.1,2.61567]
[1717519445401,1.876,3823.3,3823.1,2.61567]
[1717519446612,2.68514335,3823.3,3823.1,2.61567]
[1717519448248,1.876,3823.3,3823.1,2.61567]
[1717519448413,3.88073352,3823.4,3823.1,5.23134]
[1717519449738,3.88073352,3823.4,3823.1,2.61567]
[1717519449739,4.55208317,3823.4,3823.1,2.61567]
[1717519450341,0.67134965,3823.2,3823.1,2.61567]
[1717519450540,1.31415797,3823.2,3823.1,2.61567]
[1717519450843,0.67134965,3823.2,3823.1,2.61567]
[1717519451453,3.88073352,3823.4,3823.1,2.61567]
[1717519451599,0.67134965,3823.2,3823.1,2.61567]
[1717519452106,4.55208317,3823.4,3823.1,2.61567]
[1717519453526,3.88073352,3823.4,3823.1,2.61567]
[1717519454422,4.55208317,3823.4,3823.1,2.61567]
[1717519454946,3.88073352,3823.4,3823.1,2.61567]
[1717519455240,4.55208317,3823.4,3823.1,2.61567]
[1717519456056,0.67134965,3823.2,3823.1,2.61567]
[1717519456511,0.67134965,3823.2,3823.1,2.64856752]
[1717519458154,0.67134965,3823.2,3823.1,0.03289752]
[1717519458306,2.331,3823.3,3823.1,0.03289752]
[1717519458645,0.67134965,3823.4,3823.2,2.6156]
[1717519462245,0.67134965,3823.3,3823.2,2.6156]
[1717519469885,1.09213126,3823.7,3823.4,2.61543]
[1717519470074,4.55208317,3823.8,3823.7,2.61526]
[1717519474352,0.67134965,3823.8,3823.7,2.61526]
[1717519476295,2.91539214,3823.8,3823.7,2.61526]
[1717519476798,0.67134965,3823.8,3823.7,2.61526]
[1717519478146,6.80676696,3823.9,3823.7,2.61526]
[1717519478343,0.67134965,3823.8,3823.7,2.61526]
[1717519478587,0.67134965,3823.5,3823.4,2.61544]
[1717519478780,2.54734965,3823.5,3823.4,2.61544]
[1717519479089,2.80208462,3823.5,3823.4,2.61544]
[1717519480452,0.67134965,3823.2,3823.1,2.61565]
[1717519480702,2.54734965,3823.2,3823.1,2.64834527]
[1717519481195,1.876,3823.2,3823.1,2.64834527]
[1717519481400,2.0890735,3823.2,3823.1,2.64834527]
[1717519481694,2.76042315,3823.2,3823.1,0.03269527]
[1717519482193,0.67134965,3823.2,3823.1,0.03269527]
[1717519482870,0.67134965,3823.4,3823.2,2.6156]
[1717519483406,0.67134965,3823.7,3823.5,2.6154]
[1717519483555,1.876,3823.6,3823.5,2.6154]
[1717519485777,0.67134965,3823.7,3823.5,2.6154]
[1717519485986,1.876,3823.6,3823.5,2.6154]
[1717519487073,2.13073497,3823.6,3823.5,2.6154]
[1717519487558,0.67134965,3823.2,3823.1,2.61564]
[1717519487753,2.54734965,3823.2,3823.1,2.61564]
[1717519487954,2.54734965,3823.2,3823.1,2.64867993]
[1717519488158,2.54734965,3823.2,3823.1,2.61564]
[1717519488782,2.54734965,3823.2,3823.1,2.64873283]
[1717519491503,0.67134965,3823.2,3823.1,2.64873283]
[1717519491701,0.67134965,3823.2,3823.1,5.26440283]
[1717519493130,0.67134965,3823.2,3823.1,2.64873283]
[1717519493587,2.54734965,3823.2,3823.1,2.64873283]
[1717519495915,2.80208462,3823.2,3823.1,2.64873283]
[1717519496414,2.54734965,3823.2,3823.1,2.64873283]
[1717519497238,2.54734965,3823.2,3823.1,2.61564]
[1717519497537,2.54734965,3823.2,3823.1,2.64800347]
[1717519499515,2.54734965,3823.2,3823.1,0.03236347]
[1717519500018,0.67134965,3822.9,3822.8,2.61583]
[1717519501286,0.67134965,3823.3,3823.2,2.6156]
[1717519501478,2.99101971,3823.3,3823.2,2.6156]
[1717519501886,0.67134965,3823.0,3822.9,2.61579]
[1717519502182,0.67134965,3823.0,3822.9,0.03254955]
[1717519502595,0.67134965,3822.8,3822.7,2.61591]
[1717519502816,2.54734965,3822.8,3822.7,2.61591]
[1717519503018,2.54734965,3822.8,3822.7,2.64851306]
[1717519503788,5.23758462,3822.8,3822.7,0.03260306]
[1717519504183,0.67134965,3822.1,3822.0,2.61643]
[1717519504450,2.54734965,3822.1,3822.0,2.61643]
[1717519504586,2.54734965,3822.1,3822.0,2.6485917]
[1717519505485,0.67134965,3822.1,3822.0,2.6485917]
[1717519506021,0.67134965,3822.6,3822.0,2.6485917]
[1717519506243,4.55208317,3822.8,3822.5,2.61608]
[1717519506654,4.55208317,3822.8,3822.7,2.61595]
[1717519506819,4.55208317,3822.8,3822.7,2.64793601]
[1717519508922,7.5041069,3822.8,3822.7,0.03198601]
[1717519509412,0.67134965,3822.4,3822.3,2.61616]
[1717519509656,2.54734965,3822.4,3822.3,2.64697382]
[1717519510161,0.67134965,3822.4,3822.3,2.64697382]
[1717519510312,2.54734965,3822.4,3822.3,2.64697382]
[1717519510507,2.54734965,3822.4,3822.3,2.61616]
[1717519510912,2.54734965,3822.4,3822.3,2.6471884]
[1717519511973,0.67134965,3822.6,3822.3,2.6471884]
[1717519512117,1.876,3822.5,3822.3,2.6471884]
[1717519514368,1.876,3822.5,3822.3,5.2634084]
[1717519515240,0.67134965,3823.0,3822.9,2.61581]
[1717519515443,0.67134965,3823.0,3822.9,2.64649442]
[1717519515444,2.54734965,3823.0,3822.9,2.64649442]
[1717519516443,1.876,3823.0,3822.9,2.64649442]
[1717519516862,2.54734965,3823.0,3822.9,2.64649442]
[1717519517349,2.80208462,3823.0,3822.9,2.64649442]
[1717519518161,2.80208462,3823.0,3822.9,2.61581]
[1717519518358,2.54734965,3823.0,3822.9,2.61581]
[1717519518558,2.54734965,3823.0,3822.9,2.64643831]
[1717519520330,4.92054965,3823.0,3822.9,2.64643831]
[1717519520741,4.92054965,3823.0,3822.9,2.61581]
[1717519520977,4.92054965,3823.0,3822.9,2.6463493]
[1717519521348,2.54734965,3823.0,3822.9,2.6463493]
[1717519521568,0.67134965,3823.0,3822.9,2.6463493]
[1717519522444,0.67134965,3823.2,3822.9,2.6463493]
[1717519523535,0.67134965,3823.2,3822.9,5.2621593]
[1717519525300,2.54734965,3823.4,3823.3,2.61554]
[1717519527433,0.67134965,3823.4,3823.3,2.61554]
[1717519529400,2.54734965,3823.4,3823.3,2.61554]
[1717519529595,2.54734965,3823.4,3821.9,5.553205]
[1717519529596,2.3805,3823.3,3821.9,5.553205]
[1717519529799,0.67134965,3822.4,3821.9,2.61643]
[1717519530346,0.67134965,3822.4,3821.8,0.26387736]
[1717519530347,0.67134965,3822.4,3822.3,2.61622]
[1717519530703,0.67134965,3822.4,3822.3,2.6446388]
[1717519532591,2.54734965,3822.4,3822.3,2.6446388]
[1717519532766,3.03496462,3822.4,3822.3,2.6446388]
[1717519533057,3.03496462,3822.4,3822.3,2.61622]
[1717519533259,2.54734965,3822.4,3822.3,2.61622]
[1717519533415,2.54734965,3822.4,3822.3,2.6446388]
[1717519533963,0.67134965,3822.4,3822.3,2.6446388]
[1717519534923,0.67134965,3822.4,3822.3,0.0284188]
[1717519535453,0.67134965,3822.4,3822.3,0.02836733]
[1717519535656,0.67134965,3822.4,3822.0,2.6164]
[1717519535855,0.67134965,3822.1,3822.0,2.6164]
[1717519536560,0.67134965,3822.3,3822.0,2.6164]
[1717519536864,0.67134965,3822.3,3821.5,5.3924]
[1717519536865,0.67134965,3822.6,3822.4,2.61609]
[1717519540967,3.88073352,3822.9,3822.7,2.61595]
[1717519541138,5.60211661,3823.2,3823.0,2.61574]
[1717519541559,0.67134965,3823.2,3823.0,2.61574]
[1717519542385,0.67134965,3823.2,3822.7,2.61592]
[1717519542545,3.88073352,3823.5,3822.7,2.61592]
[1717519542546,1.876,3822.8,3822.7,2.61592]
[1717519546188,1.876,3822.8,3822.7,2.64460113]
[1717519546753,0.67134965,3822.9,3822.7,2.64460113]
[1717519546976,2.54734965,3822.9,3822.7,2.64460113]
[1717519547177,0.67134965,3823.2,3823.1,2.61563]
[1717519547570,0.67134965,3823.2,3823.1,2.64431624]
[1717519555186,0.67134965,3823.2,3823.1,0.02868624]
[1717519555508,0.67134965,3822.6,3822.4,2.61612]
[1717519555706,0.67134965,3822.6,3822.5,0.02861594]
[1717519556375,0.67134965,3823.1,3822.8,2.61588]
[1717519556571,0.67134965,3823.2,3823.1,2.61561]
[1717519558223,0.67134965,3823.4,3823.1,2.61561]
[1717519558376,0.67134965,3823.2,3823.1,2.61561]
[1717519558728,0.67134965,3823.2,3823.1,2.64312833]
[1717519560224,3.88073352,3823.5,3823.4,2.61547]
[1717519561256,3.88073352,3823.5,3823.4,5.23094]
[1717519561392,4.93076696,3823.9,3823.4,7.89147]
[1717519561596,44.1037032,3824.0,3823.4,7.89147]
[1717519561998,0.67134965,3823.9,3823.4,5.61547]
[1717519562200,44.1037032,3824.0,3823.4,5.61547]
[1717519562405,44.1037032,3824.0,3823.5,2.4726]
[1717519562603,44.1037032,3824.0,3823.8,2.61519]
[1717519564597,46.75400865,3824.0,3823.8,2.61519]
[1717519564807,0.67134965,3823.9,3823.8,2.61519]
[1717519566107,2.99324965,3823.9,3823.4,2.61542]
[1717519566299,0.67134965,3823.5,3823.4,2.61542]
[1717519566637,2.54734965,3823.5,3823.4,2.61542]
[1717519566935,2.80208462,3823.5,3823.4,2.61542]
[1717519567333,2.54734965,3823.5,3823.4,2.61542]
[1717519567637,0.67134965,3823.5,3823.4,2.61542]
[1717519570809,0.67134965,3823.7,3823.4,2.61542]
[1717519571006,2.54734965,3823.7,3823.4,2.61542]
[1717519571539,0.67134965,3823.5,3823.4,2.61542]
[1717519573731,2.54734965,3823.7,3823.4,2.61542]
[1717519573904,44.1037032,3824.0,3823.4,2.61542]
[1717519574106,44.1037032,3824.0,3823.9,2.61513]
[1717519578969,46.75400865,3824.0,3823.9,2.61513]
[1717519579847,49.14100865,3824.0,3823.9,2.61513]
[1717519580415,49.14100865,3824.0,3823.3,2.61554]
[1717519580416,0.67134965,3823.4,3823.3,2.61554]
[1717519580752,2.54734965,3823.4,3823.3,2.61554]
[1717519581048,2.54734965,3823.4,3822.5,2.61607]
[1717519581049,0.67134965,3822.8,3822.5,2.61607]
[1717519585348,0.67134965,3822.6,3822.5,2.61607]
[1717519586484,1.876,3822.6,3822.1,2.61631]
[1717519586686,0.67134965,3822.2,3822.1,2.61631]
[1717519589034,0.67134965,3821.8,3821.7,2.61657]
[1717519589239,2.54734965,3821.8,3821.7,2.61657]
[1717519589471,0.67134965,3821.4,3821.3,2.61687]
[1717519589986,0.67134965,3821.0,3820.9,2.61712]
[1717519590152,0.67134965,3820.6,3819.8,2.61791]
[1717519592699,0.67134965,3818.6,3817.9,2.61918]
[1717519593172,2.4787,3819.5,3817.9,2.61918]
[1717519593173,0.67134965,3819.0,3817.9,2.61918]
[1717519593543,0.67134965,3819.0,3818.4,2.61887]
[1717519594567,0.67134965,3818.8,3818.4,2.61887]
[1717519595065,0.67134965,3819.0,3818.4,2.61887]
[1717519596529,0.67134965,3819.0,3817.7,3.0]
[1717519596530,0.67134965,3818.5,3817.9,2.61922]
[1717519596847,4.3547,3819.5,3817.7,3.0]
[1717519596848,4.3547,3819.5,3818.1,2.6191]
[1717519597120,0.67134965,3818.3,3818.1,2.6191]
[1717519598476,0.67134965,3818.0,3817.1,2.61973]
[1717519598715,0.67134965,3817.6,3817.1,2.61973]
[1717519599023,2.4402,3818.2,3817.1,2.61973]
[1717519599024,0.67134965,3817.4,3817.1,2.61973]
[1717519600022,0.67134965,3817.6,3817.2,3.0]
[1717519600338,0.67134965,3817.6,3817.3,2.61964]
[1717519600548,0.67134965,3817.6,3817.4,0.02509494]
[1717519600861,0.67134965,3817.6,3815.9,0.2615]
[1717519601008,0.67134965,3817.6,3817.5,0.02502074]
[1717519601339,0.67134965,3817.1,3816.5,2.62019]
[1717519601542,1.876,3818.1,3817.7,2.61931]
[1717519601845,2.4086,3819.3,3817.8,0.02515924]
[1717519601846,0.67134965,3818.2,3817.8,0.02515924]
[1717519601992,0.67134965,3818.2,3817.9,2.61922]
[1717519602394,0.67134965,3818.2,3818.0,0.02507585]
[1717519602633,0.67134965,3818.2,3818.1,2.6191]
[1717519603136,0.67134965,3818.2,3818.1,2.64414902]
[1717519604032,1.876,3819.0,3818.1,2.64414902]
[1717519604237,0.67134965,3818.2,3818.1,2.64414902]
[1717519604439,0.449436,3818.9,3817.7,2.61935]
[1717519604440,3.88073352,3818.7,3817.7,2.61935]
[1717519604641,3.88073352,3818.7,3818.1,0.02480147]
[1717519604815,0.67134965,3817.7,3815.8,2.62061]
[1717519605014,3.88073352,3817.6,3816.5,2.62016]
[1717519605333,0.67134965,3817.0,3816.8,2.61996]
[1717519605539,0.67134965,3817.0,3816.9,0.02525888]
[1717519606055,0.67134965,3817.5,3817.3,2.61962]
[1717519606395,0.67134965,3817.5,3816.2,2.62035]
[1717519606760,0.67134965,3817.2,3816.9,2.61988]
[1717519606926,0.67134965,3817.2,3817.0,0.02547303]
[1717519607125,0.67134965,3817.2,3817.1,2.61978]
[1717519607537,3.88073352,3817.6,3817.1,0.02535703]
[1717519607780,0.67134965,3817.2,3817.1,0.02535703]
[1717519607961,6.50020352,3817.6,3816.7,2.62001]
[1717519607962,0.67134965,3816.8,3816.7,2.62001]
[1717519608825,0.67134965,3817.0,3815.4,4.3084]
[1717519609036,0.67134965,3817.0,3816.8,2.61997]
[1717519609238,0.67134965,3817.0,3815.7,2.62072]
[1717519609401,0.67134965,3817.0,3815.5,3.02576287]
[1717519609402,0.67134965,3816.5,3816.3,2.62029]
[1717519609722,0.67134965,3816.5,3816.4,0.0255483]
[1717519609903,0.67134965,3816.5,3816.2,2.62038]
[1717519610109,0.67134965,3816.5,3816.3,0.02557515]
[1717519610451,0.67134965,3816.7,3816.4,2.62027]
[1717519610754,3.88073352,3817.1,3816.7,2.62003]
[1717519610970,3.88073352,3817.6,3817.3,2.61961]
[1717519611128,0.67134965,3817.5,3817.3,2.61961]
[1717519611717,3.88073352,3817.6,3817.3,2.61961]
[1717519612522,4.55208317,3818.2,3817.9,2.61921]
[1717519612884,4.55208317,3818.2,3816.6,5.26761]
[1717519612885,0.94828501,3818.1,3817.4,2.61953]
[1717519613168,0.67134965,3818.0,3817.7,2.61932]
[1717519613338,0.67134965,3817.8,3817.7,2.61932]
[1717519613719,0.67134965,3818.1,3817.7,2.61932]
[1717519613968,2.2695,3818.5,3817.7,2.61932]
[1717519614269,0.67134965,3817.8,3816.7,3.0]
[1717519614419,2.2695,3818.5,3816.3,2.386]
[1717519614420,3.88073352,3818.0,3817.3,2.61963]
[1717519614617,0.38807335,3817.9,3817.3,2.61963]
[1717519615061,0.67134965,3817.4,3817.3,2.61963]
[1717519616263,0.67134965,3817.6,3817.3,2.61963]
[1717519616573,4.93076696,3817.8,3817.3,2.61963]
[1717519616723,4.93076696,3817.8,3817.6,2.61941]
[1717519616920,0.67134965,3817.7,3817.6,2.61941]
[1717519617560,0.91995738,3817.8,3817.6,2.61941]
[1717519617861,0.67134965,3817.8,3817.6,2.61941]
[1717519619690,0.67134965,3817.3,3817.2,2.61966]
[1717519620054,0.67134965,3817.3,3817.2,2.64531035]
[1717519621584,0.67134965,3817.5,3817.2,2.64531035]
[1717519621996,0.67134965,3817.8,3817.7,2.61937]
[1717519622821,4.93076696,3818.2,3818.0,2.61917]
[1717519623150,0.67134965,3818.5,3818.4,2.61889]
[1717519624490,0.67134965,3818.7,3818.4,2.61889]
[1717519624687,4.93076696,3818.9,3818.4,2.64412596]
[1717519624895,15.33899958,3819.2,3818.1,5.6191]
[1717519624896,3.88073352,3819.2,3818.8,2.61862]
[1717519625245,3.88073352,3819.2,3819.0,2.61848]
[1717519625475,4.26574303,3819.2,3819.0,2.61848]
[1717519625748,4.26574303,3819.2,3818.6,2.6187]
[1717519625749,0.67134965,3819.0,3818.6,2.6187]
[1717519625949,4.26574303,3819.2,3818.6,2.6187]
[1717519625950,0.67134965,3818.7,3818.6,2.6187]
[1717519626500,3.88073352,3819.2,3819.0,2.61844]
[1717519628201,3.88073352,3819.2,3819.1,3.55]
[1717519628561,3.88073352,3819.2,3819.1,3.0]
[1717519628954,4.55208317,3819.2,3819.0,2.61844]
[1717519629353,4.55208317,3819.2,3819.1,3.0]
[1717519629552,1.12655797,3819.2,3819.0,2.61844]
[1717519629754,0.67134965,3819.2,3819.0,2.61844]
[1717519633752,0.67134965,3819.5,3819.4,2.61821]
[1717519634087,0.67134965,3819.8,3819.7,2.618]
[1717519635774,4.93076696,3820.0,3819.7,2.618]
[1717519636025,5.60211661,3820.0,3819.7,2.618]
[1717519636195,5.60211661,3820.0,3819.9,2.61786]
[1717519636394,5.60211661,3820.0,3819.9,2.64699594]
[1717519637617,6.16232827,3820.0,3819.9,2.61786]
[1717519637812,6.16232827,3820.0,3819.9,2.64508816]
[1717519638390,1.23156131,3820.0,3819.9,2.64508816]
[1717519638589,0.67134965,3820.0,3819.9,2.64508816]
[1717519639490,0.67134965,3820.0,3819.9,0.02722816]
[1717519640022,0.67134965,3820.0,3819.5,2.61808]
[1717519640223,0.67134965,3819.6,3819.5,2.61808]
[1717519640402,0.67134965,3819.6,3819.5,2.64752459]
[1717519640805,0.67134965,3819.6,3819.5,0.02944459]
[1717519641149,0.67134965,3819.6,3818.4,2.61885]
[1717519641150,0.67134965,3819.3,3818.4,2.61885]
[1717519641290,0.67134965,3819.3,3817.1,0.54154763]
[1717519641291,2.61828,3819.3,3818.1,2.6191]
[1717519641500,2.61842,3819.1,3818.1,2.6191]
[1717519641730,0.67134965,3818.2,3818.1,2.6191]
[1717519641953,3.88073352,3818.8,3817.6,2.6194]
[1717519642246,0.67134965,3817.9,3817.6,2.6194]
[1717519642391,3.88073352,3818.8,3817.6,2.6194]
[1717519642392,0.67134965,3817.7,3817.6,2.6194]
[1717519643334,0.67134965,3818.4,3817.6,2.6194]
[1717519643508,0.67134965,3817.9,3817.8,2.61929]
[1717519643906,0.67134965,3817.9,3817.8,5.61929]
[1717519644107,0.67134965,3818.4,3817.8,5.61929]
[1717519644623,0.67134965,3818.4,3818.2,2.61901]
[1717519645094,0.67134965,3818.0,3817.9,3.0]
[1717519645296,3.88073352,3818.8,3817.7,2.61935]
[1717519645297,0.67134965,3817.8,3817.7,2.61935]
[1717519645513,0.67134965,3817.8,3817.7,6.16935]
[1717519645762,3.88073352,3818.8,3817.7,3.16935]
[1717519645763,0.67134965,3818.2,3817.7,3.16935]
[1717519645913,0.67134965,3818.2,3817.9,2.61922]
[1717519646270,0.67134965,3818.2,3818.0,3.0]
[1717519646812,0.67134965,3818.2,3817.9,2.61922]
[1717519647034,3.88073352,3818.8,3817.9,2.61922]
[1717519647035,0.67134965,3818.0,3817.9,2.61922]
[1717519647248,0.67134965,3818.4,3817.9,5.61922]
[1717519647570,4.55208317,3818.8,3818.2,2.61897]
[1717519647853,4.55208317,3818.8,3818.5,2.61876]
[1717519648454,0.67134965,3818.6,3818.5,2.61876]
[1717519648638,0.67134965,3818.6,3818.5,5.61876]
[1717519649812,0.67134965,3818.4,3818.1,2.61908]
[1717519650117,3.88073352,3818.8,3818.1,2.61908]
[1717519650357,0.88115005,3818.7,3818.1,2.61908]
[1717519650608,0.67134965,3818.5,3818.1,2.61908]
[1717519650812,0.67134965,3818.2,3818.1,2.61908]
[1717519651012,0.67134965,3818.2,3818.1,5.61908]
[1717519651214,0.88115005,3818.7,3818.1,5.64348239]
[1717519651467,0.67134965,3818.5,3818.1,5.64348239]
[1717519651685,3.88073352,3818.8,3818.5,2.61879]
[1717519652110,3.88073352,3818.8,3818.7,2.61869]
[1717519652514,3.88073352,3818.8,3818.7,2.64330304]
[1717519653111,0.67134965,3818.9,3818.7,2.64330304]
[1717519655914,1.23156131,3818.9,3818.7,2.64330304]
[1717519656173,0.67134965,3818.9,3818.7,2.64330304]
[1717519657442,4.93076696,3819.0,3818.7,2.64330304]
[1717519657643,0.67134965,3819.2,3818.9,2.61848]
[1717519658360,0.67134965,3819.0,3818.9,2.61848]
[1717519659282,0.67134965,3819.0,3818.1,3.0]
[1717519659283,0.67134965,3818.7,3818.6,2.61876]
[1717519659428,4.93076696,3819.4,3818.2,2.61899]
[1717519659429,0.67134965,3818.3,3818.2,2.61899]
[1717519659635,0.67134965,3818.3,3818.2,5.64352049]
[1717519660380,0.67134965,3819.0,3818.6,2.6187]
[1717519660672,0.67134965,3819.0,3818.7,0.02439635]
[1717519660832,0.67134965,3819.0,3818.8,2.61862]
[1717519661242,0.87555362,3819.0,3818.9,0.02434271]
[1717519661766,0.87555362,3819.0,3818.8,2.61862]
[1717519661997,0.67134965,3819.0,3818.8,2.61862]